bitfinex/quotes_ETHUSD_20260125
["timestamp","ask_amount","ask_price","bid_price","bid_amount"]
[1769368635847,11.85746039,2844.8,2843.0,11.99695871]
[1769368636151,0.35152194,2844.7,2843.2,11.99695871]
[1769368636349,11.85746039,2844.4,2843.1,1.21018465]
[1769368636654,11.85746039,2844.2,2842.7,0.87944559]
[1769368637027,11.85746039,2844.2,2842.6,0.87946015]
[1769368637539,11.85746039,2844.0,2842.5,0.737]
[1769368637846,12.7365349,2843.9,2842.5,0.737]
[1769368638053,11.85746039,2843.6,2842.0,0.88163283]
[1769368638258,11.85746039,2843.6,2842.1,0.87962789]
[1769368638556,11.85746039,2843.6,2842.0,0.88164563]
[1769368639162,11.85746039,2843.5,2842.0,0.002]
[1769368639456,0.2335703,2843.7,2842.0,0.002]
[1769368639457,0.3615703,2843.7,2842.3,0.87955225]
[1769368639629,0.2335703,2843.5,2842.2,0.002]
[1769368640040,0.128,2843.7,2842.2,0.002]
[1769368640235,3.29432114,2843.7,2842.2,0.002]
[1769368641354,11.85746039,2843.6,2842.2,0.002]
[1769368641559,0.2335703,2843.5,2842.2,0.002]
[1769368642057,1.11278947,2843.5,2842.2,0.002]
[1769368642237,12.97024986,2843.5,2842.2,0.002]
[1769368642556,1.71453149,2843.4,2842.2,0.002]
[1769368643654,13.57199188,2843.4,2842.2,0.002]
[1769368643854,1.71453149,2843.4,2842.2,11.99895871]
[1769368644053,11.85746039,2843.9,2842.2,11.99895871]
[1769368644054,0.737,2843.8,2842.2,11.99895871]
[1769368644755,12.59446039,2843.8,2842.2,11.99895871]
[1769368645744,1.0070282,2844.1,2842.2,11.99895871]
[1769368645926,1.0070282,2844.1,2842.6,11.99695871]
[1769368645927,1.11261407,2844.0,2842.6,11.99695871]
[1769368646354,0.2335703,2844.0,2842.6,11.99695871]
[1769368646656,0.2335703,2844.0,2842.5,0.87950747]
[1769368646657,11.85746039,2843.9,2842.5,0.87950747]
[1769368647157,11.85746039,2843.9,2842.4,0.002]
[1769368647458,1.11262542,2844.0,2842.4,0.002]
[1769368647459,1.29700858,2843.8,2842.4,0.88153347]
[1769368647657,12.73651551,2844.0,2842.4,0.88153347]
[1769368647958,12.73651551,2844.0,2842.4,0.002]
[1769368648156,12.73651551,2844.0,2842.4,11.99895871]
[1769368648157,11.85746039,2844.0,2842.4,11.99895871]
[1769368648365,1.0069625,2844.3,2842.4,11.99895871]
[1769368648564,0.8789625,2844.3,2842.4,11.99895871]
[1769368648767,1.69891839,2844.2,2842.6,11.99695871]
[1769368649331,13.55637878,2844.2,2842.6,11.99695871]
[1769368650155,0.737,2844.1,2842.7,12.8764043]
[1769368650779,0.128,2844.4,2842.9,11.99695871]
[1769368650948,1.76597929,2844.4,2843.0,13.27035458]
[1769368652677,1.23035614,2844.7,2843.2,11.99695871]
[1769368652867,13.08781653,2844.7,2843.0,1.27339587]
[1769368653176,12.3931745,2844.1,2842.8,0.87941288]
[1769368653376,13.1301745,2844.1,2842.8,0.87941288]
[1769368653577,13.1301745,2844.1,2842.4,11.99895871]
[1769368653744,12.3931745,2843.9,2842.5,1.19989587]
[1769368654779,13.27226663,2843.9,2842.5,1.19989587]
[1769368654950,13.27226663,2843.9,2842.5,2.0794018]
[1769368655583,13.27226663,2843.9,2842.5,1.19989587]
[1769368655881,13.27226663,2843.9,2842.5,2.07939445]
[1769368656068,1.81014605,2843.8,2842.6,1.40783532]
[1769368656670,14.20332055,2843.8,2842.6,1.40783532]
[1769368656873,15.08244161,2843.8,2842.6,1.40783532]
[1769368657466,15.08244161,2843.8,2842.4,0.002]
[1769368657467,12.3931745,2843.6,2842.4,0.002]
[1769368658358,12.3931745,2843.6,2842.4,0.88152973]
[1769368658554,12.3931745,2843.6,2842.4,0.002]
[1769368658750,13.27234858,2843.6,2842.4,0.002]
[1769368658991,12.3931745,2843.6,2842.4,0.002]
[1769368659289,12.3931745,2843.6,2842.4,1.69127459]
[1769368661008,13.27235566,2843.6,2842.4,1.69127459]
[1769368661201,13.27235566,2843.6,2842.4,0.002]
[1769368661853,12.3931745,2843.4,2842.4,0.002]
[1769368662086,12.3931745,2843.4,2842.2,0.739]
[1769368662584,14.20332055,2843.8,2842.4,12.63332674]
[1769368662789,1.61606104,2844.0,2842.5,13.05226055]
[1769368662967,0.737,2843.9,2842.5,13.89661592]
[1769368663156,14.00919238,2844.1,2842.5,13.89661592]
[1769368663483,0.87896674,2844.3,2842.7,11.75379694]
[1769368663690,0.87896674,2844.3,2842.9,11.75379694]
[1769368663868,0.87893025,2844.4,2842.9,11.75379694]
[1769368664058,0.737,2844.3,2842.9,11.75379694]
[1769368664255,12.3931745,2844.5,2842.9,11.75379694]
[1769368664456,1.74383407,2844.7,2842.9,11.75379694]
[1769368664656,1.41370086,2844.6,2843.1,11.75379694]
[1769368664856,0.87888908,2844.5,2843.1,11.75379694]
[1769368665265,13.27206358,2844.5,2843.0,1.29291766]
[1769368665670,12.3931745,2844.3,2843.0,1.29291766]
[1769368665891,12.3931745,2844.3,2842.7,0.87942663]
[1769368666190,12.3931745,2844.3,2842.5,4.78127455]
[1769368666191,12.3931745,2844.1,2842.5,13.01712961]
[1769368666369,0.128,2844.0,2842.5,1.26333267]
[1769368666569,12.3931745,2843.7,2842.2,0.739]
[1769368666992,13.27234175,2843.6,2842.2,0.739]
[1769368667888,12.3931745,2843.4,2842.2,0.739]
[1769368669420,12.3931745,2843.2,2842.2,0.739]
[1769368669578,12.3931745,2843.2,2842.6,0.002]
[1769368669914,1.32724345,2843.1,2842.6,0.002]
[1769368672606,12.3931745,2843.0,2842.2,0.002]
[1769368672768,1.32724345,2843.1,2842.2,0.002]
[1769368672769,0.737,2843.1,2842.2,0.002]
[1769368672968,0.737,2843.2,2842.2,0.002]
[1769368673510,13.1301745,2843.2,2842.2,0.002]
[1769368673706,12.3931745,2843.2,2842.2,0.002]
[1769368674414,13.2724702,2843.2,2842.2,0.002]
[1769368674577,12.3931745,2843.2,2842.2,0.002]
[1769368675130,22.12501,2843.1,2841.3,0.737]
[1769368675276,12.3931745,2842.6,2841.4,1.27745711]
[1769368675474,12.3931745,2842.4,2841.4,1.27745711]
[1769368675836,12.3931745,2842.2,2841.4,1.27745711]
[1769368675970,0.87956936,2842.3,2839.8,11.75379694]
[1769368675971,12.3931745,2841.8,2839.8,11.75379694]
[1769368676170,12.6267448,2841.5,2839.8,11.75379694]
[1769368676405,12.6267448,2841.5,2839.9,1.17537969]
[1769368676406,12.3931745,2841.3,2839.9,1.17537969]
[1769368677081,12.3931745,2841.3,2839.8,0.88033993]
[1769368677281,12.3931745,2841.3,2839.8,0.88034359]
[1769368677810,12.3931745,2841.3,2839.5,12.63423363]
[1769368678371,0.1827175,2841.4,2840.7,11.75379694]
[1769368678616,13.63249195,2842.5,2840.9,11.75379694]
[1769368678815,2.18819895,2842.4,2841.0,1.18586847]
[1769368679315,14.58137345,2842.4,2840.1,11.85868471]
[1769368679609,12.3931745,2842.0,2840.3,0.10488777]
[1769368679819,12.3931745,2842.0,2840.3,11.85868471]
[1769368680300,12.3931745,2842.0,2840.4,0.88015772]
[1769368681378,12.3931745,2842.0,2840.6,0.10488777]
[1769368681685,0.737,2841.9,2840.6,1.28637302]
[1769368682094,13.1301745,2841.9,2840.6,1.28637302]
[1769368682276,13.1301745,2841.9,2840.6,0.002]
[1769368682476,12.3931745,2841.9,2840.6,0.002]
[1769368682711,0.737,2841.8,2840.6,0.002]
[1769368684000,0.737,2841.7,2840.6,12.40061902]
[1769368684302,0.737,2841.7,2840.7,1.2400619]
[1769368684622,0.737,2841.7,2840.7,2.12012211]
[1769368684778,11.96292619,2842.8,2841.0,12.39861902]
[1769368685104,0.2335703,2842.6,2841.0,12.39861902]
[1769368685401,11.96292619,2842.6,2841.0,12.39861902]
[1769368685712,0.865,2842.7,2840.7,2.22500988]
[1769368685713,11.96292619,2842.3,2841.1,1.25035068]
[1769368685913,11.96292619,2842.3,2840.7,0.88006021]
[1769368686211,30.0,2842.2,2840.6,0.002]
[1769368686378,30.0,2842.2,2840.4,0.002]
[1769368686379,12.19649649,2841.3,2840.4,0.002]
[1769368686577,0.128,2841.4,2839.3,3.52196549]
[1769368686578,12.19649649,2841.1,2839.3,3.52196549]
[1769368686790,12.19649649,2841.1,2839.3,15.92058451]
[1769368687105,12.19649649,2841.1,2839.3,13.27911773]
[1769368688324,4.36518048,2841.8,2840.0,0.88028169]
[1769368688325,0.737,2841.0,2840.0,0.88028169]
[1769368688614,0.737,2841.0,2839.8,0.88032877]
[1769368688788,2.00699262,2841.0,2839.8,0.88032877]
[1769368689110,2.00699262,2841.0,2839.7,0.88035388]
[1769368689412,0.737,2840.9,2839.9,0.88030928]
[1769368689582,11.96292619,2841.6,2839.9,0.88030928]
[1769368689583,12.09092619,2842.0,2840.0,12.50350679]
[1769368689910,11.96292619,2841.8,2840.2,12.39861902]
[1769368690313,11.96292619,2841.8,2840.3,0.88018871]
[1769368690614,12.8426518,2841.8,2840.1,0.88023442]
[1769368690917,11.96292619,2841.6,2840.1,0.88023442]
[1769368691212,0.2335703,2841.3,2840.0,0.88027925]
[1769368691415,12.19649649,2841.3,2839.8,0.88032274]
[1769368691579,12.19649649,2841.3,2839.9,0.88031042]
[1769368691779,0.737,2841.2,2839.5,3.52163259]
[1769368692011,12.69992619,2841.2,2839.6,0.88038851]
[1769368692177,11.96292619,2841.0,2839.5,0.88041705]
[1769368692490,11.96292619,2841.0,2839.3,3.5219666]
[1769368692491,12.19649649,2840.9,2839.2,0.88252972]
[1769368693711,12.57731714,2840.9,2839.2,0.002]
[1769368694012,12.19649649,2840.9,2839.5,0.002]
[1769368694208,12.19649649,2840.7,2839.5,0.002]
[1769368694414,12.84302194,2840.6,2839.5,0.002]
[1769368694614,11.96292619,2840.4,2839.5,0.002]
[1769368694813,12.69992619,2840.3,2839.5,0.001]
[1769368695003,12.69992619,2840.3,2839.2,0.002]
[1769368695198,1.01523565,2840.2,2839.3,0.00100294]
[1769368695724,0.737,2840.1,2839.3,0.00100294]
[1769368696802,0.88026116,2840.1,2839.3,0.00100294]
[1769368696994,12.49700196,2839.8,2838.1,0.002]
[1769368697208,12.49700196,2839.8,2837.2,0.0094972]
[1769368697209,0.16621665,2837.8,2837.3,0.88111937]
[1769368697412,0.16621665,2837.8,2837.2,0.89063499]
[1769368697613,0.16621665,2837.8,2837.2,0.0094972]
[1769368698393,0.90321665,2837.8,2837.2,0.0094972]
[1769368699037,30.17421826,2837.7,2835.5,12.56698321]
[1769368699222,30.17421826,2837.7,2835.6,1.25669832]
[1769368699223,12.73057226,2837.5,2835.6,1.25669832]
[1769368699523,12.73057226,2837.5,2835.9,0.88153474]
[1769368699727,12.49700196,2837.3,2835.9,0.88154562]
[1769368699937,12.49700196,2837.3,2835.6,1.25669832]
[1769368700131,14.48370216,2837.2,2836.1,0.88146713]
[1769368700427,0.16621665,2837.8,2836.7,0.88130574]
[1769368700998,0.16621665,2837.8,2836.7,13.03828895]
[1769368701209,12.49700196,2838.7,2836.7,13.03828895]
[1769368701428,4.23458982,2840.8,2836.8,0.10488777]
[1769368701429,19.24851596,2838.8,2836.8,0.10488777]
[1769368701629,1.9248516,2838.7,2837.0,12.26187098]
[1769368701929,2.548438,2839.1,2837.0,12.26187098]
[1769368702238,12.49700196,2839.1,2837.0,12.15698321]
[1769368702418,1.61853304,2839.2,2836.7,0.88130574]
[1769368702419,0.128,2838.6,2836.7,0.88130574]
[1769368702605,12.73057226,2838.5,2836.7,0.88130574]
[1769368702795,12.49700196,2838.7,2836.7,13.03828895]
[1769368702998,4.36518048,2839.4,2837.1,12.15698321]
[1769368702999,1.35056558,2838.6,2837.1,12.15698321]
[1769368703236,12.49700196,2839.2,2837.1,12.15698321]
[1769368703237,0.866,2839.1,2837.1,12.15698321]
[1769368703441,13.37754533,2839.2,2837.0,0.10488777]
[1769368703442,12.49700196,2839.2,2837.4,12.26187098]
[1769368703598,12.49700196,2839.2,2837.4,12.15698321]
[1769368703794,13.37753705,2839.2,2837.4,12.15698321]
[1769368704039,12.49700196,2839.2,2837.4,12.15698321]
[1769368704211,12.73057226,2839.0,2837.5,1.21569832]
[1769368704405,1.2497002,2839.1,2837.4,13.03807153]
[1769368704639,12.49700196,2839.4,2837.4,13.03807153]
[1769368704640,12.49700196,2839.4,2837.8,12.15698321]
[1769368704999,1.6183941,2839.7,2837.8,12.15698321]
[1769368705000,0.738,2839.7,2837.8,12.15698321]
[1769368705304,13.3773656,2839.8,2837.8,12.15698321]
[1769368705305,12.49700196,2839.8,2837.8,12.15698321]
[1769368705534,13.23500196,2839.8,2838.0,12.15698321]
[1769368705897,12.49700196,2839.8,2838.1,0.10488777]
[1769368706101,1.2497002,2839.7,2838.2,1.2261871]
[1769368706631,1.2497002,2839.7,2838.0,12.15698321]
[1769368706632,12.49700196,2839.5,2837.9,0.738]
[1769368706932,0.9715703,2839.6,2837.9,0.738]
[1769368706933,12.49700196,2839.3,2837.9,0.738]
[1769368707228,12.73057226,2839.1,2837.6,3.52408884]
[1769368707406,12.73057226,2839.1,2837.7,0.88097405]
[1769368707607,12.73057226,2839.1,2837.7,0.88097706]
[1769368707942,1.27305723,2839.0,2837.6,13.03800942]
[1769368708236,0.738,2839.4,2837.7,12.26187098]
[1769368708412,12.49700196,2839.5,2837.7,12.26187098]
[1769368708608,13.23500196,2839.5,2837.8,13.03794733]
[1769368708825,14.11545875,2839.5,2837.8,0.88096412]
[1769368709021,12.73057226,2839.4,2837.8,0.88096412]
[1769368709228,1.43490291,2839.3,2837.9,0.44048206]
[1769368709435,12.73057226,2839.1,2837.1,12.15698321]
[1769368709733,12.73057226,2839.1,2837.5,0.88103909]
[1769368709936,12.73057226,2839.1,2837.7,0.88097336]
[1769368710237,0.738,2839.0,2837.7,0.88097336]
[1769368710435,12.73057226,2839.1,2837.7,0.88097336]
[1769368710642,30.06068572,2839.2,2837.8,0.0100431]
[1769368710950,0.2335703,2838.5,2836.9,0.88322283]
[1769368711256,12.73057226,2838.3,2836.9,0.002]
[1769368711594,14.52085919,2838.2,2836.9,0.002]
[1769368711848,12.73057226,2838.1,2836.9,0.002]
[1769368712204,12.49700196,2838.1,2837.0,0.88119464]
[1769368712517,12.49700196,2838.1,2836.9,0.8832398]
[1769368712712,13.37787526,2838.1,2836.9,0.002]
[1769368712918,0.89547348,2838.0,2836.9,0.002]
[1769368713837,12.10250589,2837.9,2836.0,15.68298248]
[1769368714036,12.10250589,2837.9,2836.2,0.88145877]
[1769368714220,12.10250589,2837.9,2836.3,0.88142359]
[1769368714637,12.98346418,2837.9,2836.1,0.88149218]
[1769368714943,12.10250589,2837.9,2836.1,0.88149218]
[1769368715236,1.38789029,2837.8,2836.1,0.98637995]
[1769368715541,0.738,2837.9,2836.1,0.98637995]
[1769368715950,0.2335703,2838.2,2836.6,11.89407136]
[1769368716361,11.86893559,2838.3,2836.6,11.89407136]
[1769368716710,11.86893559,2838.3,2836.7,0.88130574]
[1769368716925,0.2335703,2837.8,2836.6,0.002]
[1769368717128,12.10250589,2837.8,2836.6,0.002]
[1769368717325,12.10250589,2837.6,2836.6,0.002]
[1769368717862,11.86893559,2837.2,2835.5,0.002]
[1769368718014,0.738,2837.1,2835.5,0.88367253]
[1769368718215,11.86893559,2837.5,2836.0,0.88149932]
[1769368718414,11.86893559,2837.5,2836.0,0.88150261]
[1769368718855,11.86893559,2837.5,2835.8,3.52632013]
[1769368718856,11.86893559,2837.9,2835.8,12.87854457]
[1769368719158,0.2335703,2837.8,2836.1,11.89207136]
[1769368719520,1.47677318,2838.2,2836.1,11.89207136]
[1769368719521,2.22963286,2838.2,2836.1,11.89207136]
[1769368719750,2.22963286,2838.2,2836.3,11.89207136]
[1769368719751,1.40985685,2838.1,2836.3,11.89207136]
[1769368719952,2.14785685,2838.1,2836.3,11.89207136]
[1769368720147,0.001,2837.0,2836.3,11.89207136]
[1769368720357,1.40985685,2838.1,2836.3,11.89207136]
[1769368720752,1.40985685,2838.1,2836.4,0.88139895]
[1769368720924,1.40985685,2838.1,2836.5,1.62990661]
[1769368721827,1.40985685,2838.1,2836.5,13.52197797]
[1769368722933,1.40985685,2838.1,2836.6,0.88133681]
[1769368723633,1.40985685,2838.1,2836.6,12.77340817]
[1769368723967,1.40985685,2838.1,2835.8,0.002]
[1769368723968,11.86893559,2837.7,2835.8,0.002]
[1769368724181,12.10250589,2837.5,2835.9,0.88153757]
[1769368724474,12.10250589,2837.5,2835.8,0.002]
[1769368724657,12.10250589,2837.5,2835.8,0.88358182]
[1769368724859,12.10250589,2837.5,2836.1,0.88149092]
[1769368725173,11.86893559,2837.5,2835.8,0.002]
[1769368725468,0.35402611,2837.4,2835.8,11.89407136]
[1769368725853,0.2335703,2837.5,2835.8,11.89407136]
[1769368727064,11.99693559,2837.4,2835.8,12.7756432]
[1769368727287,11.86893559,2837.4,2835.8,12.7756432]
[1769368728087,11.86893559,2837.9,2836.0,11.89207136]
[1769368728289,12.74976305,2838.3,2836.3,11.99695913]
[1769368728795,12.74976059,2838.3,2836.3,11.99695913]
[1769368729362,12.7497591,2838.3,2836.5,0.10488777]
[1769368729561,12.74974892,2838.3,2836.4,12.77347031]
[1769368729805,11.86893559,2838.3,2836.5,11.99695913]
[1769368730096,13.14390727,2838.3,2836.6,1.28783581]
[1769368730463,14.02471762,2838.3,2836.6,1.28783581]
[1769368730990,13.14390727,2838.3,2836.6,1.28783581]
[1769368731488,13.14390727,2838.3,2836.7,0.88130574]
[1769368731693,0.001,2838.1,2836.7,0.88130574]
[1769368731891,0.001,2838.1,2836.8,0.56943645]
[1769368732187,0.001,2838.1,2836.9,0.738]
[1769368732877,11.86893559,2838.0,2836.8,0.56943645]
[1769368733088,11.86893559,2838.0,2836.6,0.88133007]
[1769368733706,11.86893559,2838.0,2836.5,3.52534724]
[1769368733904,11.86893559,2838.0,2836.5,15.4174186]
[1769368734884,0.001,2838.1,2836.6,11.89207136]
[1769368735097,0.001,2838.1,2836.7,1.54174186]
[1769368735771,11.86993559,2838.1,2836.7,1.54174186]
[1769368735976,11.86993559,2838.1,2836.6,0.88131458]
[1769368736311,11.86993559,2838.1,2836.7,0.88130189]
[1769368736489,11.86993559,2838.1,2836.6,0.8813145]
[1769368736810,11.86993559,2838.1,2836.7,0.88130215]
[1769368737793,11.86993559,2838.1,2836.4,0.88139895]
[1769368737999,1.27507818,2838.0,2836.5,1.70371717]
[1769368738310,13.14401377,2838.0,2836.5,1.70371717]
[1769368739375,13.14401377,2838.0,2836.6,0.738]
[1769368739921,14.0249205,2838.0,2836.6,0.738]
[1769368740219,11.86893559,2837.8,2836.6,0.738]
[1769368740394,11.86893559,2837.6,2836.6,0.738]
[1769368740812,11.86893559,2837.6,2836.5,0.88135137]
[1769368740988,1.27507818,2838.0,2836.6,0.88131142]
[1769368741183,11.86993559,2838.1,2836.6,0.88131142]
[1769368741420,0.001,2838.1,2836.8,0.10488777]
[1769368741623,0.001,2838.1,2836.9,12.63007136]
[1769368741783,0.001,2838.1,2837.1,0.88118148]
[1769368742120,0.001,2838.1,2837.3,0.10488777]
[1769368742336,12.60693559,2839.3,2837.5,11.89207136]
[1769368742621,12.05220844,2840.3,2839.4,1.7900503]
[1769368742823,12.05220844,2840.3,2837.5,0.36809719]
[1769368742824,11.86893559,2840.1,2837.4,11.89207136]
[1769368743032,11.86893559,2840.1,2837.8,11.89207136]
[1769368743331,1.18689356,2840.0,2838.0,11.72003637]
[1769368743618,11.27101183,2840.5,2838.0,11.72003637]
[1769368743787,12.15113955,2840.5,2838.2,11.72003637]
[1769368743984,11.27101183,2840.3,2838.3,12.45803637]
[1769368745215,11.27101183,2840.3,2838.3,11.72003637]
[1769368745813,11.27101183,2840.2,2838.4,12.60081427]
[1769368745988,12.39811301,2840.1,2838.5,1.61239259]
[1769368746192,12.39811301,2840.1,2838.4,0.8807779]
[1769368748125,13.27839237,2840.1,2838.2,0.88083996]
[1769368748323,12.39811301,2840.1,2838.2,12.60087633]
[1769368748829,13.27836595,2840.1,2838.2,12.60087633]
[1769368748994,1.40163659,2840.0,2838.3,13.40625999]
[1769368749200,12.1511437,2840.5,2838.3,13.40625999]
[1769368750131,11.27101183,2840.5,2838.5,11.72003637]
[1769368750511,12.15115563,2840.5,2838.5,11.72003637]
[1769368751755,11.27101183,2840.5,2838.5,11.72003637]
[1769368751927,1.12710118,2840.4,2838.7,11.72003637]
[1769368752100,1.12710118,2840.4,2838.9,11.72003637]
[1769368752301,11.27101183,2840.9,2839.1,11.72003637]
[1769368752622,11.27101183,2840.7,2839.0,0.738]
[1769368753417,12.00901183,2840.7,2839.0,0.738]
[1769368754635,12.88910228,2840.7,2839.1,0.88056074]
[1769368754837,12.00901183,2840.7,2839.1,0.88056074]
[1769368755000,1.28890676,2840.6,2839.2,1.68609053]
[1769368756112,0.001,2840.3,2839.2,1.68609053]
[1769368756714,0.001,2840.3,2839.3,0.88049871]
[1769368757107,0.001,2840.3,2839.4,12.02838755]
[1769368757320,0.001,2840.3,2839.2,2.56660471]
[1769368757503,0.001,2840.3,2839.3,0.6088823]
[1769368758935,0.001,2840.3,2839.4,0.8804677]
[1769368759510,11.44132722,2840.3,2839.0,0.738]
[1769368759901,11.44132722,2840.3,2839.0,1.61858863]
[1769368760108,1.21793272,2840.2,2839.1,0.88054985]
[1769368760409,1.21793272,2840.2,2839.2,0.88052851]
[1769368760604,1.21793272,2840.2,2839.1,0.88053888]
[1769368761504,1.21793272,2840.2,2839.0,2.13270739]
[1769368761715,1.21793272,2840.2,2839.0,1.25211944]
[1769368761922,1.26592599,2840.1,2839.0,1.25211944]
[1769368762122,1.26592599,2840.1,2839.0,2.13270185]
[1769368762548,12.70625321,2840.1,2838.6,1.26008143]
[1769368762841,13.58651874,2840.1,2838.4,0.88074687]
[1769368763011,13.58651874,2840.1,2838.5,3.52295948]
[1769368763741,12.70625321,2840.1,2838.5,3.52295948]
[1769368764045,1.26592599,2840.1,2838.6,12.02838755]
[1769368764223,0.001,2840.3,2838.8,12.02838755]
[1769368765611,0.001,2840.3,2838.9,0.88062277]
[1769368765812,0.001,2840.3,2839.0,12.02838755]
[1769368767512,0.001,2840.1,2839.0,12.02838755]
[1769368767729,0.001,2840.1,2839.1,12.90894829]
[1769368768028,0.001,2840.1,2839.2,1.64312286]
[1769368768719,0.001,2840.3,2839.3,12.02838755]
[1769368768918,12.32127399,2841.1,2839.2,1.64312286]
[1769368769832,12.32127399,2841.1,2839.3,0.88049871]
[1769368770154,11.44032722,2840.9,2839.4,0.60456164]
[1769368771229,11.44032722,2840.9,2839.4,12.63294919]
[1769368771469,1.58410375,2841.0,2839.4,12.63294919]
[1769368772255,1.58410375,2841.0,2839.5,12.90882424]
[1769368773472,13.93504062,2841.0,2839.5,12.90882424]
[1769368773652,1.48159984,2840.9,2839.6,1.70351327]
[1769368774336,0.001,2841.1,2839.8,11.37396214]
[1769368774532,12.35193687,2841.1,2839.9,3.78]
[1769368776244,13.23090871,2841.0,2839.9,3.78]
[1769368777061,0.001,2841.1,2839.9,4.66031203]
[1769368777260,0.001,2841.1,2840.0,0.4660312]
[1769368778137,0.001,2841.1,2840.0,11.83999334]
[1769368778343,0.001,2841.1,2840.1,0.88025069]
[1769368778572,0.001,2841.1,2840.1,12.25421283]
[1769368779076,0.001,2840.9,2840.1,12.25421283]
[1769368779280,0.001,2840.9,2840.2,1.62412633]
[1769368780039,0.001,2840.9,2840.0,0.4660312]
[1769368780270,0.001,2840.9,2839.9,0.88029016]
[1769368780471,0.001,2840.9,2839.8,0.88034368]
[1769368781269,0.001,2840.9,2839.6,0.88040063]
[1769368781270,12.35193687,2840.9,2839.6,0.88040063]
[1769368782082,12.34313685,2840.9,2839.6,0.88040063]
[1769368782376,13.08013685,2840.9,2839.5,0.738]
[1769368782551,12.35093687,2840.7,2839.5,1.61843545]
[1769368784360,1.39601168,2840.8,2839.5,1.61843545]
[1769368784776,12.35093687,2840.4,2838.9,0.88059776]
[1769368784962,12.35093687,2840.4,2838.6,0.88069481]
[1769368785166,12.35093687,2840.2,2838.7,0.44035608]
[1769368785378,12.35093687,2840.0,2838.6,0.88070835]
[1769368785594,0.737,2840.1,2838.0,0.737]
[1769368785595,12.35093687,2839.8,2838.0,0.737]
[1769368785746,12.35093687,2839.8,2838.1,0.88085216]
[1769368785951,12.35093687,2839.8,2838.0,0.737]
[1769368786363,12.35093687,2839.6,2838.0,0.8809]
[1769368786565,12.35093687,2839.4,2837.5,0.88105726]
[1769368786767,12.35093687,2839.4,2837.6,11.37396214]
[1769368786768,0.737,2839.3,2837.6,11.37396214]
[1769368787860,12.35093687,2839.2,2837.6,11.37396214]
[1769368788856,12.35093687,2839.2,2837.7,0.88099517]
[1769368790384,0.738,2839.1,2837.7,12.25495731]
[1769368790550,12.35093687,2839.2,2837.9,0.002]
[1769368790878,12.35093687,2839.2,2838.0,0.88090204]
[1769368790879,0.738,2839.2,2838.0,0.88090204]
[1769368791066,0.738,2839.3,2838.0,0.88090204]
[1769368792184,13.33606512,2839.5,2838.0,0.88090204]
[1769368792348,13.33606512,2839.5,2838.0,12.25486418]
[1769368792549,13.33606512,2839.5,2838.1,12.95200938]
[1769368792785,14.21651906,2839.5,2838.1,1.57804724]
[1769368792956,14.21651906,2839.5,2837.9,0.88293114]
[1769368793388,14.21651906,2839.5,2837.6,0.002]
[1769368793389,12.35093687,2838.9,2837.6,0.002]
[1769368793559,12.35093687,2838.5,2837.0,0.88120399]
[1769368793768,0.738,2838.4,2837.2,0.88112548]
[1769368794061,12.35093687,2838.9,2837.4,3.52434901]
[1769368794256,12.35093687,2838.9,2837.8,0.88095585]
[1769368794483,13.08893687,2838.9,2837.8,0.88095045]
[1769368794688,13.08893687,2838.9,2837.8,0.88095376]
[1769368794994,13.08893687,2839.1,2837.6,0.88102621]
[1769368796383,12.35093687,2839.1,2837.6,12.35987612]
[1769368796581,0.738,2839.2,2837.7,12.9623725]
[1769368796902,0.738,2839.8,2838.2,0.88083996]
[1769368797063,12.35093687,2839.9,2838.2,0.98572773]
[1769368797369,0.738,2839.8,2838.2,0.88083996]
[1769368797970,12.35093687,2839.9,2838.2,12.2548021]
[1769368798181,0.738,2839.8,2838.3,1.5778162]
[1769368798784,13.08893687,2839.8,2838.3,1.5778162]
[1769368798996,13.08893687,2839.8,2838.2,0.88083996]
[1769368799290,12.35093687,2839.6,2837.8,1.61894246]
[1769368800292,12.35093687,2839.6,2837.7,3.52388107]
[1769368800293,12.35093687,2839.4,2837.4,11.37396214]
[1769368800461,12.35093687,2839.4,2837.8,0.88096267]
[1769368801498,0.88049871,2839.3,2837.4,14.89819121]
[1769368801671,12.79118336,2839.2,2837.5,2.72332128]
[1769368802273,12.79118336,2839.2,2837.5,1.84226402]
[1769368802469,12.79118336,2839.2,2837.1,0.738]
[1769368802470,12.79118336,2839.2,2837.4,0.88108039]
[1769368802801,12.79118336,2839.2,2837.9,0.002]
[1769368803307,12.79118336,2839.2,2837.6,0.002]
[1769368803308,11.38229839,2838.8,2837.6,0.002]
[1769368803486,11.38229839,2838.6,2837.6,0.002]
[1769368803802,11.38229839,2838.6,2836.5,0.002]
[1769368803803,14.470204,2837.9,2836.5,0.002]
[1769368804111,11.38229839,2837.6,2836.5,0.002]
[1769368804344,0.738,2837.6,2836.5,0.88335004]
[1769368804600,12.12029839,2837.5,2836.5,0.002]
[1769368804805,11.38229839,2837.3,2836.5,0.002]
[1769368805376,11.74386869,2837.3,2835.8,0.002]
[1769368805574,12.263542,2836.9,2835.8,0.002]
[1769368805872,4.73595552,2835.9,2834.4,0.002]
[1769368806069,4.73595552,2835.9,2833.0,0.18310933]
[1769368806070,0.006,2835.2,2833.0,0.10488777]
[1769368806302,0.41768665,2835.5,2833.7,0.10488777]
[1769368806504,11.38229839,2835.7,2833.9,0.10488777]
[1769368806672,11.38229839,2836.2,2834.5,0.10488777]
[1769368806873,1.13822984,2836.2,2834.1,0.10488777]
[1769368807073,3.52497444,2837.2,2834.1,0.10488777]
[1769368807074,11.38229839,2837.0,2835.0,0.10488777]
[1769368807283,11.38229839,2837.0,2835.3,0.10488777]
[1769368807509,15.845143,2837.3,2835.6,0.88164762]
[1769368807806,15.845143,2837.3,2835.6,0.98653539]
[1769368807807,0.738,2837.3,2835.6,0.98653539]
[1769368807973,11.38229839,2837.6,2835.8,0.10488777]
[1769368808173,14.2134465,2837.4,2835.5,0.88166206]
[1769368808410,12.80364304,2837.3,2835.5,0.88166206]
[1769368808708,12.80364304,2837.3,2835.6,0.10488777]
[1769368809003,12.80364304,2837.3,2835.5,0.88166206]
[1769368809004,1.42134465,2837.3,2835.7,0.10488777]
[1769368809195,1.61904929,2837.6,2835.7,0.10488777]
[1769368809397,0.738,2837.5,2835.9,0.10488777]
[1769368809707,13.00137962,2837.5,2835.5,0.88166206]
[1769368809890,3.066,2837.4,2835.5,0.88166206]
[1769368810090,13.00137962,2837.5,2835.5,0.88166206]
[1769368810294,1.30013796,2837.4,2835.6,0.45132647]
[1769368810686,11.38229839,2837.4,2835.5,0.10488777]
[1769368811004,0.738,2837.6,2835.9,0.10488777]